[Event "*** Titled Tuesday Blitz"]
[Site "Chess.com"]
[Date "2019.07.02"]
[Round "2"]
[White "babadroga92"]
[Black "SanchezKelvin"]
[Result "1-0"]
[WhiteElo "2619"]
[BlackElo "2391"]
[TimeControl "180+2"]
[EndTime "13:25:44 PDT"]
[Termination "babadroga92 won by resignation"]

1. e4 {[%clk 0:03:01.9]} 1... c5 {[%clk 0:03:00.6]} 2. Nf3 {[%clk 0:03:02.1]}
2... d6 {[%clk 0:03:01]} 3. d4 {[%clk 0:03:02.9]} 3... cxd4 {[%clk 0:03:01.7]}
4. Qxd4 {[%clk 0:03:04.8]} 4... Nc6 {[%clk 0:03:01.9]} 5. Bb5 {[%clk 0:03:05.6]}
5... Qa5+ {[%clk 0:03:01]} 6. Nc3 {[%clk 0:03:06.4]} 6... Qxb5 {[%clk
0:03:01.7]} 7. Nxb5 {[%clk 0:03:08.3]} 7... Nxd4 {[%clk 0:03:03.4]} 8. Nfxd4
{[%clk 0:03:10.2]} 8... Kd8 {[%clk 0:03:05]} 9. O-O {[%clk 0:03:07.6]} 9... Bd7
{[%clk 0:03:01.4]} 10. a4 {[%clk 0:03:03.6]} 10... Nf6 {[%clk 0:02:57.1]} 11.
Re1 {[%clk 0:02:58.4]} 11... a6 {[%clk 0:02:57.7]} 12. Nc3 {[%clk 0:02:55.6]}
12... e5 {[%clk 0:02:50.1]} 13. Nb3 {[%clk 0:02:44.2]} 13... h6 {[%clk
0:02:49.8]} 14. Be3 {[%clk 0:02:39]} 14... Kc7 {[%clk 0:02:38.6]} 15. Na5 {[%clk
0:02:12.1]} 15... Be6 {[%clk 0:02:29.1]} 16. Rad1 {[%clk 0:01:54.7]} 16... Be7
{[%clk 0:02:11.9]} 17. Nd5+ {[%clk 0:01:51.2]} 17... Nxd5 {[%clk 0:02:06.2]} 18.
exd5 {[%clk 0:01:53.1]} 18... Bf5 {[%clk 0:02:03.5]} 19. Rc1 {[%clk 0:01:50.3]}
19... Bd7 {[%clk 0:01:43.7]} 20. Nc4 {[%clk 0:01:47.4]} 20... Raf8 {[%clk
0:01:34.5]} 21. Nb6 {[%clk 0:01:36.2]} 21... Bg4 {[%clk 0:01:12]} 22. f3 {[%clk
0:01:32.3]} 22... Bh5 {[%clk 0:01:09.1]} 23. c4 {[%clk 0:01:31.4]} 23... f5
{[%clk 0:00:43.6]} 24. b4 {[%clk 0:01:28.6]} 24... Bg5 {[%clk 0:00:23.8]} 25. c5
{[%clk 0:01:14.7]} 25... Bxe3+ {[%clk 0:00:23.3]} 26. Rxe3 {[%clk 0:01:16.6]}
26... Be8 {[%clk 0:00:21.6]} 27. Ra1 {[%clk 0:00:57.5]} 27... a5 {[%clk
0:00:22.1]} 28. Nc4 {[%clk 0:00:51.7]} 28... axb4 {[%clk 0:00:19.4]} 29. Nxd6
{[%clk 0:00:46.1]} 29... e4 {[%clk 0:00:18.4]} 30. fxe4 {[%clk 0:00:43.1]} 30...
fxe4 {[%clk 0:00:18.6]} 31. Rxe4 {[%clk 0:00:44.5]} 31... b6 {[%clk 0:00:16.4]}
32. Nxe8+ {[%clk 0:00:24.2]} 32... Rxe8 {[%clk 0:00:17.4]} 33. cxb6+ {[%clk
0:00:26.1]} 33... Kxb6 {[%clk 0:00:18]} 34. Rxb4+ {[%clk 0:00:27.6]} 34... Ka5
{[%clk 0:00:19.5]} 35. Rb5+ {[%clk 0:00:28.5]} 35... Ka6 {[%clk 0:00:20.9]} 36.
d6 {[%clk 0:00:27.1]} 36... Rhf8 {[%clk 0:00:21.5]} 37. Rf1 {[%clk 0:00:23.7]}
37... Rxf1+ {[%clk 0:00:21.5]} 38. Kxf1 {[%clk 0:00:25.6]} 38... Rd8 {[%clk
0:00:23]} 39. Rd5 {[%clk 0:00:26.2]} 39... Kb6 {[%clk 0:00:24.2]} 40. Ke2 {[%clk
0:00:27.3]} 40... Kc6 {[%clk 0:00:26.1]} 41. Rd4 {[%clk 0:00:27.4]} 41... Kd7
{[%clk 0:00:27.6]} 42. Kd3 {[%clk 0:00:28.3]} 42... Rb8 {[%clk 0:00:28.8]} 43.
Kc3 {[%clk 0:00:26.4]} 43... Rb1 {[%clk 0:00:28.3]} 44. a5 {[%clk 0:00:25.5]}
44... g5 {[%clk 0:00:28]} 45. h4 {[%clk 0:00:25.5]} 45... Rg1 {[%clk 0:00:27.6]}
46. hxg5 {[%clk 0:00:22.3]} 46... hxg5 {[%clk 0:00:28.9]} 47. Rg4 {[%clk
0:00:23.2]} 47... Kxd6 {[%clk 0:00:29.6]} 48. Rxg5 {[%clk 0:00:24.5]} 48... Kc6
{[%clk 0:00:31]} 49. Kc4 {[%clk 0:00:25.4]} 49... Rc1+ {[%clk 0:00:31.7]} 50.
Kd4 {[%clk 0:00:26.8]} 50... Re1 {[%clk 0:00:31.2]} 51. g4 {[%clk 0:00:26.7]}
51... Re2 {[%clk 0:00:31.8]} 52. Re5 {[%clk 0:00:27.2]} 52... Rd2+ {[%clk
0:00:31.5]} 53. Ke3 {[%clk 0:00:28]} 53... Ra2 {[%clk 0:00:31.1]} 54. Kf4 {[%clk
0:00:28.9]} 54... Kd6 {[%clk 0:00:32.3]} 55. Rb5 {[%clk 0:00:26.5]} 55... Ke6
{[%clk 0:00:32.6]} 56. Rb6+ {[%clk 0:00:26.2]} 56... Kf7 {[%clk 0:00:32.9]} 57.
a6 {[%clk 0:00:28.1]} 57... Ra5 {[%clk 0:00:32.9]} 58. g5 {[%clk 0:00:27.8]}
58... Kg7 {[%clk 0:00:30.8]} 59. Kg4 {[%clk 0:00:28.7]} 59... Ra1 {[%clk
0:00:31]} 60. Kf5 {[%clk 0:00:25.1]} 60... Ra5+ {[%clk 0:00:31.6]} 61. Ke6
{[%clk 0:00:16.9]} 61... Rxg5 {[%clk 0:00:32.3]} 62. Kd7 {[%clk 0:00:18.1]}
62... Ra5 {[%clk 0:00:30.8]} 63. Kc7 {[%clk 0:00:19.4]} 63... Kf7 {[%clk
0:00:32.2]} 64. Kb7 {[%clk 0:00:20.7]} 64... Ke7 {[%clk 0:00:32.8]} 65. a7
{[%clk 0:00:21.1]} 1-0

[Event "*** Titled Tuesday Blitz"]
[Site "Chess.com"]
[Date "2019.07.02"]
[Round "2"]
[White "AbasovN"]
[Black "Gubajdullin"]
[Result "1-0"]
[WhiteElo "2886"]
[BlackElo "2601"]
[TimeControl "180+2"]
[EndTime "13:25:53 PDT"]
[Termination "AbasovN won on time"]

1. e4 {[%clk 0:03:01.9]} 1... c6 {[%clk 0:02:27.8]} 2. d4 {[%clk 0:03:01.4]}
2... d5 {[%clk 0:02:28.2]} 3. exd5 {[%clk 0:03:03.3]} 3... cxd5 {[%clk 0:02:29]}
4. Bd3 {[%clk 0:03:05]} 4... Nc6 {[%clk 0:02:29.7]} 5. c3 {[%clk 0:03:05.4]}
5... Nf6 {[%clk 0:02:30.7]} 6. Na3 {[%clk 0:03:05.9]} 6... Bg4 {[%clk
0:02:29.7]} 7. Qb3 {[%clk 0:03:06.1]} 7... Qc8 {[%clk 0:02:30.3]} 8. h3 {[%clk
0:03:07.2]} 8... Bh5 {[%clk 0:02:30]} 9. Bf4 {[%clk 0:03:08]} 9... a6 {[%clk
0:02:29.6]} 10. Ne2 {[%clk 0:03:03.4]} 10... e6 {[%clk 0:02:29.7]} 11. Nc2
{[%clk 0:03:01.5]} 11... Be7 {[%clk 0:02:27]} 12. Ne3 {[%clk 0:03:02.9]} 12...
O-O {[%clk 0:02:27.4]} 13. O-O {[%clk 0:02:55.5]} 13... b5 {[%clk 0:02:26.3]}
14. Rfe1 {[%clk 0:02:52.5]} 14... Na5 {[%clk 0:02:23.9]} 15. Qc2 {[%clk
0:02:53.3]} 15... Nc4 {[%clk 0:02:24.7]} 16. Bg5 {[%clk 0:02:47.8]} 16... Bg6
{[%clk 0:02:19.3]} 17. Nf4 {[%clk 0:02:48.7]} 17... Bxd3 {[%clk 0:02:18]} 18.
Nxd3 {[%clk 0:02:50.6]} 18... Re8 {[%clk 0:02:13.7]} 19. Bxf6 {[%clk 0:02:44.1]}
19... Bxf6 {[%clk 0:02:13.1]} 20. Nc5 {[%clk 0:02:39.9]} 20... Bg5 {[%clk
0:02:06.9]} 21. Nxc4 {[%clk 0:02:39.2]} 21... bxc4 {[%clk 0:02:03.8]} 22. b4
{[%clk 0:02:41.1]} 22... Qc7 {[%clk 0:01:48.6]} 23. g3 {[%clk 0:02:37.4]} 23...
e5 {[%clk 0:01:41.2]} 24. Qf5 {[%clk 0:02:12.3]} 24... Bd2 {[%clk 0:01:32.8]}
25. Rxe5 {[%clk 0:02:05.5]} 25... Rxe5 {[%clk 0:01:12.2]} 26. dxe5 {[%clk
0:02:06.3]} 26... Bxc3 {[%clk 0:01:12.3]} 27. Rd1 {[%clk 0:02:02]} 27... Bxb4
{[%clk 0:01:06.2]} 28. Nd7 {[%clk 0:02:03.5]} 28... c3 {[%clk 0:00:59.2]} 29. e6
{[%clk 0:02:04.7]} 29... fxe6 {[%clk 0:00:55.6]} 30. Qxe6+ {[%clk 0:02:06.6]}
30... Kh8 {[%clk 0:00:56.4]} 31. Ne5 {[%clk 0:02:04.6]} 31... Rf8 {[%clk
0:00:52.2]} 32. Rd4 {[%clk 0:02:06.1]} 32... Qe7 {[%clk 0:00:14.2]} 33. Qxd5
{[%clk 0:01:51.4]} 33... c2 {[%clk 0:00:12.3]} 34. Rc4 {[%clk 0:01:52.8]} 34...
Bd6 {[%clk 0:00:09.9]} 35. Nd3 {[%clk 0:00:18.5]} 35... Bxg3 {[%clk 0:00:09.5]}
36. Rxc2 {[%clk 0:00:19.9]} 36... Bb8 {[%clk 0:00:09.2]} 37. Kf1 {[%clk
0:00:20.3]} 37... Qf6 {[%clk 0:00:09.4]} 38. Qe4 {[%clk 0:00:20.1]} 38... Qa1+
{[%clk 0:00:07.8]} 39. Kg2 {[%clk 0:00:21.5]} 39... Qf6 {[%clk 0:00:07.9]} 40.
Rc5 {[%clk 0:00:23]} 40... h6 {[%clk 0:00:07.1]} 41. Qg4 {[%clk 0:00:19.2]}
41... Qd6 {[%clk 0:00:07.1]} 42. Rf5 {[%clk 0:00:15.8]} 42... Qh2+ {[%clk
0:00:06.7]} 43. Kf1 {[%clk 0:00:17]} 43... Qh1+ {[%clk 0:00:07.6]} 44. Ke2
{[%clk 0:00:18.4]} 44... Re8+ {[%clk 0:00:08.9]} 45. Kd2 {[%clk 0:00:19.9]}
45... Qa1 {[%clk 0:00:08.3]} 46. Qc4 {[%clk 0:00:19.4]} 46... Rd8 {[%clk
0:00:06.7]} 47. Rd5 {[%clk 0:00:18.6]} 47... Rf8 {[%clk 0:00:06]} 48. f4 {[%clk
0:00:18.4]} 48... Qf6 {[%clk 0:00:06.4]} 49. f5 {[%clk 0:00:18.1]} 49... Qg5+
{[%clk 0:00:07]} 50. Kc3 {[%clk 0:00:18.3]} 50... Qg1 {[%clk 0:00:07.5]} 51. Kb3
{[%clk 0:00:18.5]} 51... Qb1+ {[%clk 0:00:07.8]} 52. Ka4 {[%clk 0:00:19.5]}
52... Bg3 {[%clk 0:00:03.6]} 53. Qb3 {[%clk 0:00:17.5]} 53... Qf1 {[%clk
0:00:03.1]} 54. Nc5 {[%clk 0:00:14.1]} 1-0

[Event "*** Titled Tuesday Blitz"]
[Site "Chess.com"]
[Date "2019.07.02"]
[Round "2"]
[White "TenisMaster"]
[Black "Azatnew"]
[Result "1-0"]
[WhiteElo "2838"]
[BlackElo "2591"]
[TimeControl "180+2"]
[EndTime "13:25:53 PDT"]
[Termination "TenisMaster won by resignation"]

1. e4 {[%clk 0:03:01.9]} 1... c5 {[%clk 0:03:00.7]} 2. Nf3 {[%clk 0:03:02.7]}
2... d6 {[%clk 0:03:00.4]} 3. d4 {[%clk 0:03:04.1]} 3... cxd4 {[%clk 0:03:02.3]}
4. Nxd4 {[%clk 0:03:05.4]} 4... Nf6 {[%clk 0:03:02.6]} 5. Nc3 {[%clk 0:03:06.9]}
5... a6 {[%clk 0:03:04]} 6. h4 {[%clk 0:03:07.7]} 6... e5 {[%clk 0:03:03]} 7.
Nb3 {[%clk 0:03:08.3]} 7... Be7 {[%clk 0:03:03.9]} 8. Bg5 {[%clk 0:03:08.4]}
8... Be6 {[%clk 0:03:03.4]} 9. Bxf6 {[%clk 0:03:07.8]} 9... Bxf6 {[%clk
0:03:05.3]} 10. g3 {[%clk 0:03:09.2]} 10... g6 {[%clk 0:02:28.1]} 11. Bh3 {[%clk
0:03:08.1]} 11... Nc6 {[%clk 0:02:25.4]} 12. Qd2 {[%clk 0:03:05.3]} 12... Rc8
{[%clk 0:02:19.8]} 13. O-O-O {[%clk 0:03:04.4]} 13... Bxh3 {[%clk 0:02:17.4]}
14. Rxh3 {[%clk 0:03:04.2]} 14... Be7 {[%clk 0:02:14.6]} 15. h5 {[%clk
0:02:58.1]} 15... Qd7 {[%clk 0:02:13.4]} 16. Rh2 {[%clk 0:02:52.7]} 16... Qg4
{[%clk 0:02:13.4]} 17. Kb1 {[%clk 0:02:50.1]} 17... g5 {[%clk 0:02:05.1]} 18.
Re1 {[%clk 0:02:35.6]} 18... h6 {[%clk 0:02:01.3]} 19. Nd5 {[%clk 0:02:34.7]}
19... Qe6 {[%clk 0:02:00.5]} 20. Rd1 {[%clk 0:02:30.9]} 20... g4 {[%clk
0:01:58]} 21. Qe2 {[%clk 0:02:17.1]} 21... Bg5 {[%clk 0:01:53]} 22. f4 {[%clk
0:02:14]} 22... gxf3 {[%clk 0:01:53.4]} 23. Qxf3 {[%clk 0:02:15.4]} 23... O-O
{[%clk 0:01:38.3]} 24. g4 {[%clk 0:02:11.9]} 24... b5 {[%clk 0:01:29.2]} 25. Rf2
{[%clk 0:01:35.4]} 25... Kg7 {[%clk 0:01:20.7]} 26. Qf5 {[%clk 0:01:28.2]} 26...
a5 {[%clk 0:01:18.9]} 27. c3 {[%clk 0:01:26.3]} 27... a4 {[%clk 0:01:17.7]} 28.
Na1 {[%clk 0:01:23.7]} 28... Ne7 {[%clk 0:00:30.5]} 29. Qf3 {[%clk 0:01:13.5]}
29... Rc5 {[%clk 0:00:28.5]} 30. Nc2 {[%clk 0:01:10.8]} 30... Nxd5 {[%clk
0:00:28.9]} 31. exd5 {[%clk 0:01:12.3]} 31... Qc8 {[%clk 0:00:28.9]} 32. a3
{[%clk 0:01:11.5]} 32... Rc4 {[%clk 0:00:29.1]} 33. Re1 {[%clk 0:01:09.9]} 33...
Qxg4 {[%clk 0:00:29.1]} 34. Qh1 {[%clk 0:01:02.7]} 34... Qh4 {[%clk 0:00:29.4]}
35. Qf1 {[%clk 0:01:01.4]} 35... Qxh5 {[%clk 0:00:30]} 36. Ne3 {[%clk
0:00:56.3]} 36... Rf4 {[%clk 0:00:29.7]} 37. Nf5+ {[%clk 0:00:54.3]} 37... Kh7
{[%clk 0:00:30.6]} 38. Ka2 {[%clk 0:00:45.7]} 38... Qg6 {[%clk 0:00:31.2]} 39.
Rxf4 {[%clk 0:00:39.2]} 39... Bxf4 {[%clk 0:00:33.1]} 40. Nh4 {[%clk 0:00:40.4]}
40... Qg4 {[%clk 0:00:30.5]} 41. Qd3+ {[%clk 0:00:35.4]} 41... Kh8 {[%clk
0:00:29.1]} 42. Nf5 {[%clk 0:00:35.7]} 42... Qg6 {[%clk 0:00:29.6]} 43. Rh1
{[%clk 0:00:34.7]} 43... Bg5 {[%clk 0:00:28.2]} 44. Qf3 {[%clk 0:00:33.3]} 44...
Re8 {[%clk 0:00:28.4]} 45. Qe4 {[%clk 0:00:34]} 45... Rc8 {[%clk 0:00:28.9]} 46.
Qf3 {[%clk 0:00:29.3]} 46... Re8 {[%clk 0:00:28.9]} 47. Qe4 {[%clk 0:00:29.6]}
47... Rc8 {[%clk 0:00:30]} 48. Qf3 {[%clk 0:00:30.2]} 48... Rc4 {[%clk
0:00:27.1]} 49. Ng3 {[%clk 0:00:24.1]} 49... Rf4 {[%clk 0:00:25]} 50. Qe2 {[%clk
0:00:25.3]} 50... Rc4 {[%clk 0:00:21.1]} 51. Rf1 {[%clk 0:00:25.4]} 51... Kg8
{[%clk 0:00:21.4]} 52. Nh5 {[%clk 0:00:24.3]} 52... Qe4 {[%clk 0:00:19.8]} 53.
Qd1 {[%clk 0:00:19.8]} 53... Rc5 {[%clk 0:00:17.1]} 54. Ka1 {[%clk 0:00:14.5]}
54... Qxd5 {[%clk 0:00:18]} 55. Qg4 {[%clk 0:00:14.6]} 55... Qc4 {[%clk
0:00:19.2]} 56. Nf6+ {[%clk 0:00:14.7]} 56... Kg7 {[%clk 0:00:20.6]} 57. Nh5+
{[%clk 0:00:14.7]} 57... Kg6 {[%clk 0:00:20.8]} 58. Qf5+ {[%clk 0:00:15]} 58...
Kxh5 {[%clk 0:00:22.1]} 59. Rh1+ {[%clk 0:00:16.3]} 59... Qh4 {[%clk 0:00:23.4]}
60. Qxf7+ {[%clk 0:00:17.3]} 60... Kg4 {[%clk 0:00:24]} 61. Rg1+ {[%clk
0:00:18.2]} 61... Qg3 {[%clk 0:00:21.6]} 62. Qe6+ {[%clk 0:00:19.2]} 62... Kh4
{[%clk 0:00:22.1]} 63. Rh1+ {[%clk 0:00:20]} 1-0

[Event "*** Titled Tuesday Blitz"]
[Site "Chess.com"]
[Date "2019.07.02"]
[Round "2"]
[White "BlueWizzard"]
[Black "Semen_Khanin"]
[Result "1-0"]
[WhiteElo "2720"]
[BlackElo "2718"]
[TimeControl "180+2"]
[EndTime "13:25:55 PDT"]
[Termination "BlueWizzard won by resignation"]

1. e4 {[%clk 0:03:01.9]} 1... e5 {[%clk 0:03:00.3]} 2. Nf3 {[%clk 0:03:02]} 2...
Nc6 {[%clk 0:03:00.6]} 3. Bc4 {[%clk 0:03:03.4]} 3... Bc5 {[%clk 0:03:00.6]} 4.
c3 {[%clk 0:03:04.8]} 4... Nf6 {[%clk 0:03:01.6]} 5. d4 {[%clk 0:03:06.4]} 5...
exd4 {[%clk 0:03:03]} 6. e5 {[%clk 0:03:08]} 6... d5 {[%clk 0:03:04.2]} 7. Be2
{[%clk 0:03:09.6]} 7... Ne4 {[%clk 0:03:05.1]} 8. cxd4 {[%clk 0:03:11.2]} 8...
Bb6 {[%clk 0:03:06.4]} 9. Nc3 {[%clk 0:03:11.3]} 9... O-O {[%clk 0:03:07.3]} 10.
O-O {[%clk 0:03:12.7]} 10... f5 {[%clk 0:03:08.1]} 11. exf6 {[%clk 0:03:12.6]}
11... Nxf6 {[%clk 0:03:09]} 12. h3 {[%clk 0:03:06.9]} 12... Bf5 {[%clk
0:03:09.2]} 13. Na4 {[%clk 0:03:07.6]} 13... Qd7 {[%clk 0:03:08.1]} 14. Ne5
{[%clk 0:03:04.1]} 14... Nxe5 {[%clk 0:03:07.4]} 15. dxe5 {[%clk 0:03:06]} 15...
Ne4 {[%clk 0:03:07.8]} 16. Nxb6 {[%clk 0:03:05]} 16... axb6 {[%clk 0:03:08.3]}
17. Be3 {[%clk 0:02:57.9]} 17... c5 {[%clk 0:03:09.2]} 18. Qb3 {[%clk 0:02:50]}
18... Be6 {[%clk 0:02:56.6]} 19. Qxb6 {[%clk 0:02:47.8]} 19... d4 {[%clk
0:02:57.4]} 20. Bd3 {[%clk 0:02:24.5]} 20... Bd5 {[%clk 0:02:02.4]} 21. e6
{[%clk 0:01:44.9]} 21... Qe7 {[%clk 0:01:56.8]} 22. Bxe4 {[%clk 0:01:45.5]}
22... Bxe4 {[%clk 0:01:57.6]} 23. Bd2 {[%clk 0:01:45.4]} 23... Ra6 {[%clk
0:01:58.6]} 24. Qb3 {[%clk 0:01:45.3]} 24... Rxe6 {[%clk 0:01:55]} 25. Rae1
{[%clk 0:01:44.2]} 25... Kh8 {[%clk 0:01:56.3]} 26. f3 {[%clk 0:01:44.6]} 26...
Bf5 {[%clk 0:01:55.1]} 27. g4 {[%clk 0:01:23.2]} 27... Qh4 {[%clk 0:01:02]} 28.
Kg2 {[%clk 0:01:22.9]} 28... Rxe1 {[%clk 0:00:44.4]} 29. Bxe1 {[%clk 0:01:03]}
29... Qg5 {[%clk 0:00:45.3]} 30. Qxb7 {[%clk 0:01:00.4]} 30... h5 {[%clk
0:00:45.5]} 31. Qd5 {[%clk 0:00:56.6]} 31... Qg6 {[%clk 0:00:32.6]} 32. Bg3
{[%clk 0:00:53.3]} 32... Bd3 {[%clk 0:00:28.1]} 33. Re1 {[%clk 0:00:47.9]} 33...
Qh6 {[%clk 0:00:14.1]} 34. Qxc5 {[%clk 0:00:37.8]} 34... Qd2+ {[%clk 0:00:15.1]}
35. Bf2 {[%clk 0:00:39.2]} 35... Be2 {[%clk 0:00:15.9]} 36. Qxh5+ {[%clk
0:00:36.2]} 36... Kg8 {[%clk 0:00:17.2]} 37. Qd5+ {[%clk 0:00:38.1]} 37... Kh8
{[%clk 0:00:18.7]} 38. Kg1 {[%clk 0:00:18.2]} 38... Bxf3 {[%clk 0:00:18.8]} 39.
Qxd4 {[%clk 0:00:19.6]} 39... Qh6 {[%clk 0:00:17.2]} 40. h4 {[%clk 0:00:19.9]}
40... Qg6 {[%clk 0:00:17.9]} 41. g5 {[%clk 0:00:20.6]} 41... Qh5 {[%clk
0:00:18.8]} 42. Re7 {[%clk 0:00:20.6]} 42... Qg6 {[%clk 0:00:20]} 43. Kh2 {[%clk
0:00:18.7]} 43... Bc6 {[%clk 0:00:20.1]} 44. Kg1 {[%clk 0:00:12.9]} 44... Qb1+
{[%clk 0:00:12.7]} 45. Re1 {[%clk 0:00:13.8]} 45... Qf5 {[%clk 0:00:13.5]} 46.
Re7 {[%clk 0:00:14.1]} 46... Qb1+ {[%clk 0:00:14.1]} 47. Be1 {[%clk 0:00:15.7]}
47... Qg6 {[%clk 0:00:13.6]} 48. Bc3 {[%clk 0:00:17]} 48... Qb1+ {[%clk
0:00:13.7]} 49. Re1 {[%clk 0:00:16.8]} 49... Qg6 {[%clk 0:00:14.3]} 50. Qe5
{[%clk 0:00:17]} 50... Qf7 {[%clk 0:00:12.6]} 51. Bd4 {[%clk 0:00:15.5]} 51...
Re8 {[%clk 0:00:12.4]} 52. Qxg7+ {[%clk 0:00:16.4]} 52... Qxg7 {[%clk
0:00:13.5]} 53. Rxe8+ {[%clk 0:00:18.1]} 53... Bxe8 {[%clk 0:00:14.1]} 54. Bxg7+
{[%clk 0:00:20]} 54... Kxg7 {[%clk 0:00:15.7]} 55. Kf2 {[%clk 0:00:21.9]} 55...
Kg6 {[%clk 0:00:12.1]} 56. Kg3 {[%clk 0:00:22.8]} 56... Kh5 {[%clk 0:00:13.3]}
57. b4 {[%clk 0:00:24.1]} 57... Bb5 {[%clk 0:00:14]} 58. Kf4 {[%clk 0:00:25.4]}
58... Kxh4 {[%clk 0:00:11.5]} 59. g6 {[%clk 0:00:26.5]} 59... Kh5 {[%clk
0:00:12.8]} 60. g7 {[%clk 0:00:27]} 60... Bc4 {[%clk 0:00:14.4]} 61. b5 {[%clk
0:00:28.1]} 61... Kg6 {[%clk 0:00:12.1]} 62. b6 {[%clk 0:00:29.5]} 62... Kxg7
{[%clk 0:00:12.2]} 63. b7 {[%clk 0:00:29]} 1-0

[Event "*** Titled Tuesday Blitz"]
[Site "Chess.com"]
[Date "2019.07.02"]
[Round "2"]
[White "Quiet_Desperation"]
[Black "MFBerna"]
[Result "1/2-1/2"]
[WhiteElo "2472"]
[BlackElo "2405"]
[TimeControl "180+2"]
[EndTime "13:25:55 PDT"]
[Termination "Game drawn by repetition"]

1. e4 {[%clk 0:03:01.9]} 1... c6 {[%clk 0:02:57.8]} 2. Nf3 {[%clk 0:03:01.3]}
2... d5 {[%clk 0:02:59.7]} 3. Nc3 {[%clk 0:03:02.2]} 3... dxe4 {[%clk
0:02:59.7]} 4. Nxe4 {[%clk 0:03:03.3]} 4... Nf6 {[%clk 0:03:00.8]} 5. Nxf6+
{[%clk 0:03:04.6]} 5... exf6 {[%clk 0:03:02.4]} 6. d4 {[%clk 0:03:06.1]} 6...
Bd6 {[%clk 0:03:03.3]} 7. Bd3 {[%clk 0:03:07.4]} 7... O-O {[%clk 0:03:04.6]} 8.
Be3 {[%clk 0:03:08.6]} 8... Re8 {[%clk 0:03:05]} 9. c3 {[%clk 0:03:03.9]} 9...
Bf4 {[%clk 0:03:00.2]} 10. Qd2 {[%clk 0:03:00.4]} 10... Qe7 {[%clk 0:02:33.5]}
11. Kf1 {[%clk 0:02:57.2]} 11... Bxe3 {[%clk 0:02:27.3]} 12. fxe3 {[%clk
0:02:58.4]} 12... Nd7 {[%clk 0:02:23.3]} 13. e4 {[%clk 0:02:57.2]} 13... Nf8
{[%clk 0:02:21.8]} 14. Kf2 {[%clk 0:02:56.6]} 14... c5 {[%clk 0:02:22]} 15. Rhe1
{[%clk 0:02:50.6]} 15... Bd7 {[%clk 0:02:08.2]} 16. Kg1 {[%clk 0:02:49.1]} 16...
Rad8 {[%clk 0:02:05.7]} 17. d5 {[%clk 0:02:47.7]} 17... b5 {[%clk 0:01:39.1]}
18. b3 {[%clk 0:02:38.4]} 18... Ng6 {[%clk 0:01:32.3]} 19. c4 {[%clk 0:02:37.7]}
19... bxc4 {[%clk 0:01:16.8]} 20. Bxc4 {[%clk 0:02:27.9]} 20... Ne5 {[%clk
0:01:08.3]} 21. Nxe5 {[%clk 0:02:24.2]} 21... Qxe5 {[%clk 0:01:08.3]} 22. Qf2
{[%clk 0:02:22.1]} 22... Rc8 {[%clk 0:01:00.3]} 23. Rac1 {[%clk 0:02:14.8]}
23... g6 {[%clk 0:00:55.1]} 24. Ba6 {[%clk 0:01:53.1]} 24... Rc7 {[%clk
0:00:56.3]} 25. Rxc5 {[%clk 0:01:51.7]} 25... Rxc5 {[%clk 0:00:55.9]} 26. Qxc5
{[%clk 0:01:52.6]} 26... f5 {[%clk 0:00:57.8]} 27. Qxa7 {[%clk 0:01:46]} 27...
Qc3 {[%clk 0:00:47.1]} 28. Rf1 {[%clk 0:01:29.7]} 28... Rd8 {[%clk 0:00:28.4]}
29. Qb6 {[%clk 0:01:16.3]} 29... Rf8 {[%clk 0:00:14.8]} 30. exf5 {[%clk
0:00:57.8]} 30... Bxf5 {[%clk 0:00:16.7]} 31. Bc4 {[%clk 0:00:54.6]} 31... Re8
{[%clk 0:00:13.9]} 32. d6 {[%clk 0:00:50.2]} 32... Re1 {[%clk 0:00:11.3]} 33.
Qf2 {[%clk 0:00:40.6]} 33... Rxf1+ {[%clk 0:00:09.7]} 34. Bxf1 {[%clk 0:00:39]}
34... Qc1 {[%clk 0:00:07.3]} 35. h3 {[%clk 0:00:29.8]} 35... Qd1 {[%clk
0:00:08.1]} 36. Qf4 {[%clk 0:00:24.2]} 36... Bd3 {[%clk 0:00:03.6]} 37. Qf2
{[%clk 0:00:13]} 37... Bxf1 {[%clk 0:00:03.8]} 38. Qxf1 {[%clk 0:00:14.3]} 38...
Qxd6 {[%clk 0:00:04.3]} 39. a4 {[%clk 0:00:14.8]} 39... Qb6+ {[%clk 0:00:04.1]}
40. Kh2 {[%clk 0:00:14]} 40... Qxb3 {[%clk 0:00:05]} 41. Qa1 {[%clk 0:00:15.1]}
41... Qb8+ {[%clk 0:00:04.1]} 42. Kh1 {[%clk 0:00:15.9]} 42... Qa8 {[%clk
0:00:05]} 43. a5 {[%clk 0:00:17.5]} 43... Qa6 {[%clk 0:00:06.5]} 44. Qa3 {[%clk
0:00:18]} 44... h5 {[%clk 0:00:07.2]} 45. Qb4 {[%clk 0:00:18.9]} 45... Qf1+
{[%clk 0:00:06.5]} 46. Kh2 {[%clk 0:00:19.9]} 46... Qa6 {[%clk 0:00:06.9]} 47.
Qb6 {[%clk 0:00:18.8]} 47... Qf1 {[%clk 0:00:07.6]} 48. Qd8+ {[%clk 0:00:16.9]}
48... Kh7 {[%clk 0:00:07.7]} 49. Qd4 {[%clk 0:00:13.8]} 49... Qa6 {[%clk
0:00:06.5]} 50. Qb6 {[%clk 0:00:09.9]} 50... Qf1 {[%clk 0:00:06.6]} 51. Qd4
{[%clk 0:00:10.1]} 51... Qa6 {[%clk 0:00:07.2]} 52. Qc3 {[%clk 0:00:10.9]} 52...
Qd6+ {[%clk 0:00:07.3]} 53. Kg1 {[%clk 0:00:11.3]} 53... Qd1+ {[%clk 0:00:07.7]}
54. Kf2 {[%clk 0:00:12.1]} 54... Qa4 {[%clk 0:00:05.6]} 55. Qd2 {[%clk
0:00:10.4]} 55... Qa3 {[%clk 0:00:04.4]} 56. Kg1 {[%clk 0:00:10.2]} 56... Qa1+
{[%clk 0:00:04.9]} 57. Kf2 {[%clk 0:00:11.4]} 57... Qa3 {[%clk 0:00:05.9]} 58.
Ke2 {[%clk 0:00:10.7]} 58... Qa4 {[%clk 0:00:05.7]} 59. Ke1 {[%clk 0:00:10.8]}
59... Qa1+ {[%clk 0:00:06.3]} 60. Kf2 {[%clk 0:00:11.6]} 60... Qa3 {[%clk
0:00:06.8]} 1/2-1/2